bitfinex-derivatives/quotes_BTCF0:USTF0_20241214
["timestamp","ask_amount","ask_price","bid_price","bid_amount"]
[1734196773340,0.50123555,101390.0,101380.0,1.06644559]
[1734196774337,0.23587415,101390.0,101380.0,1.06644559]
[1734196775041,0.50123555,101390.0,101380.0,0.76644559]
[1734196775238,0.23587415,101390.0,101380.0,0.76644559]
[1734196775639,0.50123555,101390.0,101380.0,0.76644559]
[1734196775834,0.50123555,101390.0,101380.0,1.06644559]
[1734196776041,0.23587415,101390.0,101380.0,1.06644559]
[1734196777343,0.44234709,101390.0,101380.0,0.9185179]
[1734196777545,0.20647294,101390.0,101380.0,0.9185179]
[1734196778550,9.4e-07,101390.0,101380.0,0.9185179]
[1734196778753,0.59667415,101410.0,101400.0,0.049307]
[1734196778942,0.59667415,101410.0,101400.0,0.14256471]
[1734196779143,0.86085715,101410.0,101400.0,0.14256471]
[1734196780241,0.3608,101410.0,101400.0,0.14256471]
[1734196780853,0.59667415,101410.0,101400.0,0.14256471]
[1734196781349,0.3608,101410.0,101400.0,0.14256471]
[1734196781652,0.59667415,101420.0,101400.0,0.14256471]
[1734196781845,0.30462925,101410.0,101400.0,0.14256471]
[1734196782042,0.85477455,101420.0,101400.0,0.14256471]
[1734196782043,0.85477455,101420.0,101410.0,0.049302]
[1734196783349,0.85472825,101420.0,101410.0,0.049302]
[1734196783544,0.85472825,101420.0,101410.0,0.07044111]
[1734196784150,0.3608,101420.0,101410.0,0.07044111]
[1734196784553,0.3608,101420.0,101410.0,0.16369882]
[1734196786356,0.53764796,101420.0,101410.0,0.16369882]
[1734196788153,0.53764796,101420.0,101410.0,0.07044111]
[1734196789151,0.50810984,101420.0,101410.0,0.07044111]
[1734196790452,0.50810984,101420.0,101410.0,0.16369882]
[1734196791750,0.14730984,101420.0,101410.0,0.16369882]
[1734196801359,0.14730984,101420.0,101410.0,0.07044111]
[1734196801564,0.50810984,101420.0,101410.0,0.07044111]
[1734196802366,0.53764796,101420.0,101410.0,0.07044111]
[1734196807067,0.57044796,101420.0,101410.0,0.07044111]
[1734196807467,0.3936,101420.0,101410.0,0.07044111]
[1734196808067,0.50219922,101420.0,101410.0,0.07044111]
[1734196808671,0.50220676,101420.0,101410.0,0.07044111]
[1734196809571,0.80220676,101420.0,101390.0,0.413709]
[1734196809772,0.99169403,101400.0,101390.0,0.413709]
[1734196810074,0.73694905,101400.0,101390.0,0.413709]
[1734196810274,0.76784905,101400.0,101390.0,0.43305616]
[1734196810471,0.9292356,101400.0,101390.0,0.43305616]
[1734196813566,0.9292356,101400.0,101390.0,0.43254317]
[1734196816467,1.07630522,101400.0,101390.0,0.43254317]
[1734196816978,0.68460522,101400.0,101390.0,0.43254317]
[1734196817169,0.50786962,101400.0,101390.0,0.52580088]
[1734196817369,0.14706962,101400.0,101390.0,0.52580088]
[1734196818173,0.26472808,101400.0,101390.0,0.52580088]
[1734196818378,0.11765846,101400.0,101390.0,0.52580088]
[1734196820274,0.11765846,101400.0,101390.0,0.43254317]
[1734196820869,0.50786962,101400.0,101390.0,0.43254317]
[1734196823873,0.50786962,101400.0,101390.0,0.52580088]
[1734196828371,0.5375356,101400.0,101390.0,0.52580088]
[1734196828577,0.50806355,101400.0,101390.0,0.52580088]
[1734196831875,0.68479915,101400.0,101390.0,0.52580088]
[1734196833780,0.14726355,101400.0,101390.0,0.52580088]
[1734196835276,0.14726355,101400.0,101390.0,0.88660088]
[1734196835483,0.26520146,101400.0,101390.0,0.88660088]
[1734196835781,0.11793791,101400.0,101390.0,0.88660088]
[1734196838879,0.20638276,101400.0,101390.0,0.88660088]
[1734196842277,0.20638276,101400.0,101390.0,0.90592348]
[1734196842990,0.20638276,101400.0,101390.0,0.99918119]
[1734196844282,0.20638276,101400.0,101390.0,0.90592348]
[1734196844691,0.20638276,101400.0,101390.0,0.99918119]
[1734196846282,0.08844485,101400.0,101390.0,0.90592348]
[1734196846482,0.08844485,101400.0,101390.0,0.99918119]
[1734196846683,8.5e-07,101400.0,101390.0,0.99918119]
[1734196849387,8.5e-07,101400.0,101390.0,0.93515107]
[1734196850490,0.11793791,101410.0,101400.0,0.049307]
[1734196850680,0.11793791,101410.0,101400.0,0.65693495]
[1734196851083,0.16619231,101420.0,101400.0,0.65693495]
[1734196851284,0.16619231,101420.0,101410.0,0.2044873]
[1734196852286,0.11793791,101420.0,101410.0,0.2044873]
[1734196853883,0.11793791,101420.0,101410.0,0.5652873]
[1734196854084,0.11793791,101430.0,101420.0,0.049297]
[1734196854285,0.11793791,101430.0,101420.0,0.23302495]
[1734196854689,0.11793791,101440.0,101420.0,0.59382495]
[1734196854986,0.11793791,101440.0,101430.0,0.55414971]
[1734196855185,0.11793791,101440.0,101430.0,0.58704971]
[1734196855393,0.15113791,101450.0,101440.0,0.049287]
[1734196855582,0.15063791,101450.0,101440.0,0.1717723]
[1734196856291,0.11793791,101450.0,101440.0,0.1717723]
[1734196856480,0.11843791,101450.0,101440.0,0.1717723]
[1734196856682,0.11843791,101450.0,101440.0,0.080287]
[1734196856880,0.11843791,101450.0,101440.0,0.2027723]
[1734196857484,0.11793791,101450.0,101440.0,0.2027723]
[1734196858590,0.11843791,101450.0,101440.0,0.2027723]
[1734196859498,0.11793791,101450.0,101440.0,0.2027723]
[1734196860694,0.53998056,101450.0,101440.0,0.05690156]
[1734196860884,0.53998056,101450.0,101440.0,0.11052965]
[1734196861089,0.47873791,101450.0,101440.0,0.11052965]
[1734196861284,0.47873791,101450.0,101440.0,0.1717723]
[1734196861688,0.11793791,101450.0,101440.0,0.1717723]
[1734196861902,0.47873791,101450.0,101440.0,0.1717723]
[1734196863396,0.47873791,101450.0,101440.0,0.11052965]
[1734196866096,0.47873791,101450.0,101440.0,0.1717723]
[1734196868899,0.47873791,101450.0,101440.0,0.11052965]
[1734196869295,0.47873791,101450.0,101440.0,0.1717723]
[1734196869493,0.47873791,101450.0,101440.0,0.11052965]
[1734196870000,0.47873791,101450.0,101440.0,0.1717723]
[1734196870299,0.47873791,101450.0,101440.0,0.19125996]
[1734196871095,0.47873791,101450.0,101440.0,0.13001731]
[1734196871604,0.3608,101450.0,101440.0,0.13001731]
[1734196873205,0.3608,101450.0,101440.0,0.11052965]
[1734196877189,0.5375356,101450.0,101440.0,0.08099276]
[1734196877394,0.5375356,101450.0,101440.0,0.13027976]
[1734196877800,0.3608,101450.0,101440.0,0.13027976]
[1734196878499,0.5375356,101450.0,101440.0,0.13027976]
[1734196880200,0.59877825,101450.0,101440.0,0.13027976]
[1734196881601,0.59877825,101450.0,101440.0,0.06903711]
[1734196881798,0.59877825,101450.0,101440.0,0.13027976]
[1734196882402,0.5375356,101450.0,101440.0,0.13027976]
[1734196883098,0.5375356,101450.0,101440.0,0.19152241]
[1734196884399,0.5375356,101450.0,101440.0,0.13027976]
[1734196887094,0.59877825,101450.0,101440.0,0.01975011]
[1734196887298,0.64806125,101450.0,101440.0,0.01975011]
[1734196887507,0.47132565,101450.0,101440.0,0.01975011]
[1734196888406,0.67742204,101450.0,101440.0,0.01975011]
[1734196888711,0.47132565,101450.0,101440.0,0.01975011]
[1734196888903,0.47132565,101450.0,101440.0,0.06903811]
[1734196889709,0.67742204,101450.0,101440.0,0.06903811]
[1734196890504,0.91524847,101450.0,101420.0,0.08818565]
[1734196890699,0.53772703,101430.0,101420.0,0.15525853]
[1734196890909,0.50823866,101430.0,101420.0,0.15525853]
[1734196891808,0.53772703,101430.0,101420.0,0.15525853]
[1734196892196,0.53772703,101430.0,101420.0,0.13582163]
[1734196892406,0.3608,101430.0,101420.0,0.13582163]
[1734196893007,0.53772703,101430.0,101420.0,0.13582163]
[1734196893303,0.50814387,101430.0,101420.0,0.13582163]
[1734196896710,0.6850709,101430.0,101420.0,0.13582163]
[1734196897010,0.50814387,101430.0,101420.0,0.13582163]
[1734196898515,0.56938652,101430.0,101420.0,0.07457898]
[1734196899204,0.79560555,101430.0,101420.0,0.02528198]
[1734196899406,0.61867852,101430.0,101420.0,0.02528198]
[1734196899708,0.79560555,101430.0,101420.0,0.02528198]
[1734196900104,0.83920555,101430.0,101420.0,0.02528198]
[1734196900503,0.69186168,101430.0,101420.0,0.02528198]
[1734196900698,0.83914555,101430.0,101420.0,0.02528198]
[1734196901001,0.69186168,101430.0,101420.0,0.02528198]
[1734196903208,0.69186168,101430.0,101420.0,0.07457898]
[1734196908716,0.64256968,101430.0,101420.0,0.07457898]
[1734196910713,0.58132703,101430.0,101420.0,0.13582163]
[1734196910918,0.53772703,101430.0,101420.0,0.19706428]
[1734196911315,0.68503609,101430.0,101420.0,0.19706428]
[1734196911819,0.68503609,101430.0,101420.0,0.13582163]
[1734196912220,0.68503609,101430.0,101420.0,0.19706428]
[1734196912423,0.53772703,101430.0,101420.0,0.19706428]
[1734196912626,0.50813198,101430.0,101420.0,0.19706428]
[1734196913117,0.11787279,101430.0,101420.0,0.55786428]
[1734196913617,0.2652287,101440.0,101430.0,0.049292]
[1734196913818,0.2652287,101440.0,101430.0,0.51723465]
[1734196916821,0.6260287,101440.0,101430.0,0.15643465]
[1734196917320,0.50813198,101440.0,101430.0,0.15643465]
[1734196918118,0.50813198,101440.0,101430.0,0.19753465]
[1734196918921,0.50813198,101440.0,101430.0,0.24233465]
[1734196920323,0.56937463,101440.0,101430.0,0.090392]
[1734196920514,0.59896968,101440.0,101430.0,0.049292]
[1734196920715,0.61432055,101440.0,101430.0,0.049292]
[1734196920915,0.48229352,101440.0,101430.0,0.049292]
[1734196921215,0.52789352,101440.0,101430.0,0.049292]
[1734196921416,0.55644265,101440.0,101430.0,0.049292]
[1734196922218,0.55644265,101440.0,101420.0,0.06869149]
[1734196922415,0.70966681,101430.0,101420.0,0.11798849]
[1734196922626,0.50809895,101430.0,101420.0,0.13792034]
[1734196923819,0.50809895,101430.0,101420.0,0.14601326]
[1734196926423,0.68485769,101430.0,101420.0,0.14601326]
[1734196926617,0.50809895,101430.0,101420.0,0.14601326]
[1734196926916,0.50809895,101430.0,101420.0,0.08477061]
[1734196927122,0.68485769,101430.0,101420.0,0.08477061]
[1734196927527,0.50809895,101430.0,101420.0,0.08477061]
[1734196928820,0.5693416,101430.0,101420.0,0.08477061]
[1734196929222,0.50809895,101430.0,101420.0,0.08477061]
[1734196929617,0.50809895,101430.0,101420.0,0.14601326]
[1734196930325,0.5693416,101430.0,101420.0,0.06483876]
[1734196930523,0.5693416,101430.0,101420.0,0.01554176]
[1734196930724,0.64809339,101430.0,101420.0,0.00744884]
[1734196932824,0.64809339,101430.0,101420.0,0.05674584]
[1734196936814,0.65610044,101430.0,101420.0,0.05674584]
[1734196937324,0.65610044,101430.0,101420.0,0.00744884]
[1734196937530,0.49129235,101430.0,101400.0,0.04942242]
[1734196937826,0.93012865,101410.0,101400.0,0.07024176]
[1734196938221,1.15617656,101410.0,101400.0,0.07024176]
[1734196938621,1.0406733,101410.0,101400.0,0.02093676]
[1734196938919,1.02422857,101410.0,101400.0,0.02093676]
[1734196939317,1.08547122,101410.0,101400.0,0.02093676]
[1734196939520,1.02422857,101410.0,101400.0,0.02093676]
[1734196939722,1.08547122,101410.0,101400.0,0.02093676]
[1734196941030,1.07013321,101410.0,101400.0,0.07024376]
[1734196941237,1.0410504,101410.0,101400.0,0.07024376]
[1734196943737,1.0488865,101410.0,101400.0,0.07024376]
[1734196944927,1.0557965,101410.0,101400.0,0.07024376]
[1734196945323,1.44930878,101410.0,101370.0,0.1382]
[1734196945627,1.44930878,101410.0,101370.0,0.188022]
[1734196945628,0.57178247,101380.0,101370.0,0.188022]
[1734196945929,0.57178247,101380.0,101370.0,0.096822]
[1734196945930,0.71875744,101380.0,101370.0,0.096822]
[1734196946128,0.60117746,101380.0,101370.0,0.096822]
[1734196946325,0.71868602,101380.0,101370.0,0.096822]
[1734196946725,0.71868602,101380.0,101370.0,0.096322]
[1734196947133,0.62528353,101380.0,101370.0,0.096322]
[1734196947326,0.47830856,101380.0,101370.0,0.096322]
[1734196947734,0.47830856,101380.0,101370.0,0.096822]
[1734196948941,0.47830856,101380.0,101370.0,0.10479644]
[1734196949746,0.47830856,101380.0,101370.0,0.10429644]
[1734196950636,0.57171105,101380.0,101370.0,0.05497444]
[1734196950941,0.62102805,101380.0,101370.0,0.05497444]
[1734196951743,0.62102805,101380.0,101360.0,0.1129216]
[1734196952041,0.3608,101370.0,101360.0,0.1129216]
[1734196952738,0.3608,101370.0,101360.0,0.1134216]
[1734196953332,0.3608,101370.0,101360.0,0.12127295]
[1734196954632,0.3608,101370.0,101360.0,0.12077295]
[1734196955642,0.3608,101370.0,101360.0,0.14200451]
[1734196956043,0.3608,101370.0,101360.0,0.235407]
[1734196958644,0.43437,101370.0,101360.0,0.235407]
[1734196959236,0.43437,101370.0,101360.0,0.14200451]
[1734196959830,0.55187856,101370.0,101360.0,0.14200451]
[1734196960733,0.55187856,101370.0,101360.0,0.12220891]
[1734196960936,0.55187856,101370.0,101360.0,0.09779055]
[1734196961130,0.65235847,101370.0,101360.0,0.07840891]
[1734196961435,0.55895598,101370.0,101360.0,0.07840891]
[1734196962741,0.55895598,101370.0,101360.0,0.1718114]
[1734196964245,0.19815598,101370.0,101360.0,0.1718114]
[1734196964547,0.08064742,101370.0,101360.0,0.5326114]
[1734196964745,0.13598742,101370.0,101360.0,0.5326114]
[1734196965047,0.13598742,101370.0,101360.0,0.43920891]
[1734196965244,0.25349598,101370.0,101360.0,0.07840891]
[1734196965439,0.61429598,101370.0,101360.0,0.07840891]
[1734196965833,0.25349598,101370.0,101360.0,0.1718114]
[1734196966143,0.25349598,101370.0,101360.0,0.5326114]
[1734196968546,0.40047095,101370.0,101360.0,0.5326114]
[1734196969148,0.25349598,101370.0,101360.0,0.5326114]
[1734196972750,0.26138598,101370.0,101360.0,0.5326114]
[1734196974648,0.26138598,101370.0,101360.0,0.62601389]
[1734196974857,0.34985495,101370.0,101360.0,0.5326114]
[1734196975748,0.35774495,101370.0,101360.0,0.5326114]
[1734196975947,0.26927598,101370.0,101360.0,0.51137984]
[1734196977450,0.35773691,101370.0,101360.0,0.51137984]
[1734196977655,0.24022835,101370.0,101360.0,0.51137984]
[1734196978152,0.24022835,101370.0,101360.0,0.53241111]
[1734196978339,0.24022835,101370.0,101360.0,0.9258136]
[1734196978542,0.15176742,101370.0,101360.0,0.9258136]
[1734196978850,0.15866742,101370.0,101360.0,0.9258136]
[1734196979047,0.15866742,101370.0,101360.0,1.03512423]
[1734196979749,0.15866742,101370.0,101360.0,1.01409296]
[1734196980656,0.15866742,101370.0,101360.0,1.0342087]
[1734196981551,0.15866742,101370.0,101360.0,1.01409296]
[1734196983460,0.15866742,101370.0,101360.0,0.62069047]
[1734196983644,0.15866742,101370.0,101360.0,0.15057984]
[1734196983847,0.15866742,101370.0,101360.0,0.51137984]
[1734196984055,0.24712835,101370.0,101360.0,0.51137984]
[1734196984256,0.15866742,101370.0,101360.0,0.15057984]
[1734196984554,0.24712835,101370.0,101360.0,0.15057984]
[1734196984946,0.36463691,101370.0,101360.0,0.15057984]
[1734196985345,0.36457412,101370.0,101360.0,0.15057984]
[1734196986451,0.27617598,101370.0,101360.0,0.15057984]
[1734196987558,0.36458596,101370.0,101360.0,0.15057984]
[1734196988550,0.27617598,101370.0,101360.0,0.15057984]
[1734196988752,0.27617598,101370.0,101360.0,0.60478233]
[1734196988953,0.36459101,101370.0,101360.0,0.60478233]
[1734196989153,0.24708245,101370.0,101360.0,0.51137984]
[1734196990949,0.36459101,101370.0,101360.0,0.51137984]
[1734196991350,0.72539101,101370.0,101360.0,0.15057984]
[1734196992054,0.63697598,101370.0,101360.0,0.15057984]
[1734196992356,0.78395095,101370.0,101360.0,0.15057984]
[1734196992552,0.63697598,101370.0,101360.0,0.15057984]
[1734196993058,0.27617598,101370.0,101360.0,0.51137984]
[1734196993460,0.36462512,101370.0,101360.0,0.51137984]
[1734196994960,0.24711656,101370.0,101360.0,0.51137984]
[1734196996957,0.24711656,101370.0,101360.0,0.60478233]
[1734196997161,0.24711656,101370.0,101360.0,0.51137984]
[1734196999254,0.13731216,101380.0,101360.0,0.51137984]
[1734196999455,0.13731216,101380.0,101370.0,0.14272449]
[1734197000258,0.62554591,101390.0,101370.0,0.14272449]
[1734197000454,0.62618591,101390.0,101380.0,0.14271949]
[1734197000654,0.64332591,101390.0,101380.0,0.14271949]
[1734197004362,0.64332591,101390.0,101380.0,0.049317]
[1734197005263,0.64332591,101390.0,101380.0,0.11060628]
[1734197005467,0.46658,101390.0,101380.0,0.11060628]
[1734197005864,0.000246,101390.0,101380.0,0.17189556]
[1734197006069,0.000246,101390.0,101380.0,0.53269556]
[1734197006668,0.000246,101390.0,101380.0,0.17189556]
[1734197006862,0.000246,101390.0,101380.0,0.53269556]
[1734197007057,0.000346,101390.0,101380.0,0.53269556]
[1734197007262,0.016126,101390.0,101380.0,0.50347703]
[1734197008062,0.016126,101390.0,101380.0,0.51317688]
[1734197011764,0.016126,101390.0,101380.0,0.54784363]
[1734197013061,0.016126,101390.0,101380.0,0.17224363]
[1734197013271,0.016126,101390.0,101380.0,0.0788836]
[1734197013567,0.016126,101390.0,101380.0,0.17224363]
[1734197020680,0.110026,101390.0,101380.0,0.0788836]
[1734197021075,0.470826,101390.0,101380.0,0.0788836]
[1734197021381,0.470826,101390.0,101380.0,0.05901685]
[1734197021586,0.56418603,101390.0,101370.0,0.36448]
[1734197021885,0.41835972,101380.0,101370.0,0.42394913]
[1734197022080,0.4088,101380.0,101370.0,0.42394913]
[1734197022581,0.4088,101380.0,101370.0,0.51730916]
[1734197023185,0.42458,101380.0,101370.0,0.51730916]
[1734197024778,0.06378,101380.0,101370.0,0.51730916]
[1734197026182,0.06378,101380.0,101370.0,0.51731316]
[1734197028380,0.0642,101380.0,101370.0,0.51731316]
[1734197028580,0.425,101380.0,101370.0,0.51731316]
[1734197029283,0.57223753,101380.0,101370.0,0.37463113]
[1734197029484,0.79830044,101380.0,101360.0,0.06939634]
[1734197029788,0.79830044,101380.0,101360.0,0.11343037]
[1734197029789,0.37036526,101370.0,101360.0,0.11343037]
[1734197029974,0.50803753,101370.0,101360.0,0.02007034]
[1734197030187,0.60413753,101370.0,101360.0,0.02007034]
[1734197030379,0.65345953,101370.0,101360.0,0.02007034]
[1734197030584,0.60413753,101370.0,101360.0,0.02007034]
[1734197030775,0.4569,101370.0,101360.0,0.02007034]
[1734197032482,0.4569,101370.0,101360.0,0.06939734]
[1734197035083,0.506222,101370.0,101360.0,0.02007034]
[1734197035383,0.514112,101370.0,101360.0,0.02007034]
[1734197036581,0.66134953,101370.0,101360.0,0.02007034]
[1734197036786,0.60747203,101370.0,101360.0,0.02007034]
[1734197036982,0.55815003,101370.0,101350.0,0.15265143]
[1734197037190,0.55815003,101370.0,101350.0,0.10795143]
[1734197037191,0.48102889,101360.0,101350.0,0.10795143]
[1734197037393,0.51826235,101360.0,101350.0,0.10795143]
[1734197037690,0.51826235,101360.0,101350.0,0.09790748]
[1734197038499,0.456927,101360.0,101350.0,0.15776335]
[1734197038698,0.51826235,101360.0,101350.0,0.15776335]
[1734197039195,0.456927,101360.0,101350.0,0.096428]
[1734197040597,0.456927,101360.0,101350.0,0.11571094]
[1734197040897,0.410127,101360.0,101350.0,0.11571094]
[1734197041594,0.410747,101360.0,101350.0,0.11571094]
[1734197045397,0.418637,101360.0,101350.0,0.11571094]
[1734197046598,0.56587453,101360.0,101350.0,0.11571094]
[1734197050491,0.74262044,101360.0,101350.0,0.11571094]
[1734197051402,0.56587453,101360.0,101350.0,0.11571094]
[1734197052293,0.74262044,101360.0,101350.0,0.11571094]
[1734197052901,0.56587453,101360.0,101350.0,0.11571094]
[1734197053399,0.049331,101350.0,101340.0,0.41388601]
[1734197053599,0.65082138,101350.0,101340.0,0.04940601]
[1734197054198,0.55736853,101350.0,101340.0,0.04940601]
[1734197054798,0.55736853,101350.0,101340.0,0.06952488]
[1734197056803,0.50803753,101350.0,101340.0,0.16297773]
[1734197057003,0.3608,101350.0,101340.0,0.30443058]
[1734197057704,0.15574753,101360.0,101350.0,0.049331]
[1734197057907,0.51654753,101360.0,101350.0,0.23238385]
[1734197059309,0.68478344,101380.0,101360.0,0.049327]
[1734197059497,0.48805379,101370.0,101360.0,0.14277985]
[1734197059699,0.62587213,101370.0,101360.0,0.14277985]
[1734197060101,0.26507213,101370.0,101360.0,0.14277985]
[1734197060302,0.1181146,101370.0,101360.0,0.14277985]
[1734197060502,0.1260046,101370.0,101360.0,0.14277985]
[1734197062507,0.1260046,101370.0,101360.0,0.19007985]
[1734197067111,0.1260046,101370.0,101360.0,0.1997951]
[1734197072710,0.1260046,101370.0,101360.0,0.21973511]
[1734197073404,0.4868046,101370.0,101360.0,0.12628226]
[1734197076709,0.63404213,101370.0,101360.0,0.07898226]
[1734197076908,0.60690753,101370.0,101360.0,0.07898226]
[1734197078221,0.60690753,101370.0,101360.0,0.06926701]
[1734197082916,0.61479753,101370.0,101360.0,0.06926701]
[1734197083225,0.61479753,101370.0,101360.0,0.13058747]
[1734197083417,0.62494338,101370.0,101360.0,0.13058747]
[1734197083718,0.67304338,101370.0,101360.0,0.13058747]
[1734197084618,0.84978929,101370.0,101360.0,0.13058747]
[1734197085523,0.70255176,101370.0,101360.0,0.13058747]
[1734197086633,1.12467222,101370.0,101360.0,0.06926701]
[1734197087122,1.17399422,101370.0,101360.0,0.049327]
[1734197088514,1.17416904,101370.0,101360.0,0.049327]
[1734197091523,0.91458073,101370.0,101360.0,0.11064746]
[1734197096213,1.06197634,101370.0,101360.0,0.11064746]
[1734197096417,0.91458073,101370.0,101360.0,0.11064746]
[1734197097017,1.06198653,101370.0,101360.0,0.15904746]
[1734197097526,0.91458073,101370.0,101360.0,0.15904746]
[1734197100127,0.91458073,101370.0,101360.0,0.22036792]
[1734197100321,1.06204552,101370.0,101360.0,0.26706792]
[1734197100517,0.16352479,101370.0,101360.0,0.26706792]
[1734197101123,0.13405628,101370.0,101360.0,0.68918838]
[1734197101429,0.68518552,101380.0,101370.0,0.049322]
[1734197101630,0.14746479,101380.0,101370.0,0.11064246]
[1734197102528,0.15662479,101380.0,101370.0,0.11064246]
[1734197102729,0.15662479,101380.0,101370.0,0.17196292]
[1734197103131,0.15662479,101380.0,101370.0,0.049322]
[1734197103328,0.15662479,101380.0,101370.0,0.17196292]
[1734197103528,0.00916,101380.0,101370.0,0.53276292]
[1734197104134,0.00916,101380.0,101370.0,0.542753]
[1734197104733,0.00916,101380.0,101370.0,0.591253]
[1734197105135,0.00916,101380.0,101370.0,0.955813]
[1734197108337,0.50826479,101400.0,101390.0,0.049312]
[1734197108532,0.50826479,101400.0,101390.0,0.11063246]
[1734197108731,0.50826479,101400.0,101390.0,0.15923246]
[1734197109639,0.51288479,101400.0,101390.0,0.15923246]
[1734197112233,0.51288479,101400.0,101390.0,0.22055292]
[1734197112432,0.00462,101400.0,101390.0,0.22055292]
[1734197113135,0.00462,101400.0,101390.0,0.15923246]
[1734197113136,0.36542,101400.0,101390.0,0.15923246]
[1734197114230,0.00462,101400.0,101390.0,0.15923246]
[1734197115135,0.00462,101400.0,101390.0,0.16901855]
[1734197115535,0.00462,101400.0,101390.0,0.23033901]
[1734197117533,0.36542,101400.0,101390.0,0.16901855]
[1734197118537,0.36542,101400.0,101390.0,0.23033901]
[1734197119343,0.45359739,101400.0,101390.0,0.23033901]
[1734197119737,0.45359739,101400.0,101390.0,0.25034417]
[1734197121353,0.45359739,101400.0,101390.0,0.18902371]
[1734197122148,0.45359739,101400.0,101390.0,0.25034417]
[1734197122335,0.45359739,101400.0,101390.0,0.18902371]
[1734197122537,0.45359739,101400.0,101390.0,0.25034417]
[1734197124635,0.09279739,101400.0,101390.0,0.25034417]
[1734197129448,0.00462,101400.0,101390.0,0.25034417]
[1734197129643,0.00462,101400.0,101390.0,0.18902371]
[1734197129836,0.36542,101400.0,101390.0,0.14042371]
[1734197130036,0.51288479,101400.0,101390.0,0.14042371]
[1734197130237,0.51288479,101400.0,101390.0,0.12041855]
[1734197131241,0.68980552,101400.0,101390.0,0.12041855]
[1734197132550,0.51288479,101400.0,101390.0,0.12041855]
[1734197133736,0.51288479,101400.0,101390.0,0.18173901]
[1734197134545,0.51288479,101400.0,101390.0,0.12041855]
[1734197139346,0.51288479,101400.0,101390.0,0.05909809]
[1734197139545,0.68980552,101400.0,101390.0,0.05909809]
[1734197139749,0.36542,101400.0,101390.0,0.12041855]
[1734197140238,0.54234073,101400.0,101390.0,0.12041855]
[1734197141350,0.65296819,101400.0,101390.0,0.049312]
[1734197141543,0.68246233,101400.0,101390.0,0.049312]
[1734197141748,0.62114187,101400.0,101370.0,0.47815657]
[1734197141949,0.2189176,101390.0,101380.0,0.11063746]
[1734197142143,0.73206741,101390.0,101380.0,0.11063746]
[1734197142344,0.68153542,101390.0,101380.0,0.11063746]
[1734197143246,0.68602542,101390.0,101380.0,0.11063746]
[1734197143545,0.68654542,101390.0,101380.0,0.11063746]
[1734197144148,0.83394859,101390.0,101380.0,0.11063746]
[1734197147748,0.65691317,101390.0,101380.0,0.11063746]
[1734197153848,1.01771317,101390.0,101380.0,0.11063746]
[1734197156953,1.07903363,101390.0,101380.0,0.049317]
[1734197157157,1.15797788,101390.0,101380.0,0.049317]
[1734197158865,1.09665742,101390.0,101380.0,0.11063746]
[1734197163060,1.09665742,101390.0,101380.0,0.17195792]
[1734197163061,0.90364542,101390.0,101380.0,0.17195792]
[1734197163363,1.05095627,101390.0,101380.0,0.22125792]
[1734197163660,1.05095627,101390.0,101380.0,0.27065792]
[1734197165165,1.05095627,101390.0,101380.0,0.24139258]
[1734197165656,0.87392085,101390.0,101380.0,0.24139258]
[1734197170460,0.87392085,101390.0,101380.0,0.148017]
[1734197170766,0.87392085,101390.0,101380.0,0.24139426]
[1734197171753,0.87392085,101390.0,101380.0,0.148017]
[1734197172156,0.87392085,101390.0,101380.0,0.049317]
[1734197172458,1.10055627,101390.0,101380.0,0.049317]
[1734197172662,1.14815627,101390.0,101380.0,0.049317]
[1734197173965,1.00084542,101390.0,101380.0,0.049317]
[1734197174266,1.05015742,101390.0,101380.0,0.049317]
[1734197174966,0.32855742,101390.0,101380.0,0.049317]
[1734197175260,1.05015742,101390.0,101380.0,0.049317]
[1734197175859,0.32855742,101390.0,101380.0,0.049317]
[1734197176053,1.05010229,101390.0,101380.0,0.049317]
[1734197176265,1.14347955,101390.0,101380.0,0.049317]
[1734197176461,0.96649926,101390.0,101380.0,0.049317]
[1734197177665,0.873122,101390.0,101380.0,0.049317]
[1734197179964,0.04932,101380.0,101370.0,0.049321]
[1734197180169,0.55119726,101380.0,101370.0,0.049321]
[1734197181371,0.049325,101370.0,101360.0,0.049326]
[1734197181562,0.82536809,101370.0,101360.0,0.049326]
[1734197181767,0.049327,101360.0,101350.0,0.05080967]
[1734197181967,0.78004943,101360.0,101350.0,0.04933]
[1734197182170,0.55280426,101360.0,101350.0,0.04933]
[1734197182360,0.7293608,101360.0,101350.0,0.04933]
[1734197184365,0.87632642,101360.0,101350.0,0.04933]
[1734197184573,0.78294916,101360.0,101350.0,0.04933]
[1734197184767,0.87632642,101360.0,101350.0,0.04933]
[1734197185370,0.69976988,101360.0,101350.0,0.04933]
[1734197186377,0.69976988,101360.0,101340.0,0.04940701]
[1734197186570,0.62885845,101350.0,101340.0,0.04940701]
[1734197186771,0.6590121,101350.0,101340.0,0.04940701]
[1734197187073,0.57089335,101350.0,101340.0,0.04940701]
[1734197187278,0.80169147,101350.0,101340.0,0.04940701]
[1734197187767,0.71360261,101350.0,101340.0,0.04940701]
[1734197188166,0.8016829,101350.0,101340.0,7.101e-05]
[1734197188369,0.71360261,101350.0,101340.0,7.101e-05]
[1734197188771,0.80166471,101350.0,101340.0,7.101e-05]
[1734197188971,0.71360261,101350.0,101340.0,7.101e-05]
[1734197190674,0.80161321,101350.0,101340.0,7.101e-05]
[1734197191083,0.63035941,101350.0,101340.0,0.14278527]
[1734197191382,0.71835881,101350.0,101340.0,0.14278527]
[1734197191584,0.71835881,101350.0,101340.0,0.04940801]
[1734197192673,0.60086546,101350.0,101340.0,0.04940801]
[1734197192878,0.71835881,101350.0,101340.0,0.04940801]
[1734197193676,0.72283881,101350.0,101340.0,0.04940801]
[1734197193869,0.63483941,101350.0,101340.0,0.04940801]
[1734197194077,0.57073243,101350.0,101340.0,0.14278527]
[1734197194279,0.57073243,101350.0,101340.0,0.18898527]
[1734197194476,0.57073243,101350.0,101340.0,0.23688527]
[1734197195284,0.45323908,101350.0,101340.0,0.23688527]
[1734197195484,0.45323908,101350.0,101340.0,0.14350801]
[1734197195785,0.50257108,101350.0,101340.0,7.101e-05]
[1734197195991,0.60087108,101350.0,101340.0,7.101e-05]
[1734197196393,0.71836443,101350.0,101340.0,7.101e-05]
[1734197196581,0.60182108,101350.0,101340.0,7.101e-05]
[1734197197080,0.71931443,101350.0,101340.0,7.101e-05]
[1734197197276,0.71931443,101350.0,101340.0,0.04940801]
[1734197198394,0.58175535,101350.0,101340.0,0.04940801]
[1734197199191,0.76311716,101350.0,101340.0,0.04940801]
[1734197199385,0.67513261,101350.0,101340.0,0.04940801]
[1734197199685,0.67513261,101350.0,101340.0,7.101e-05]
[1734197199880,0.76313806,101350.0,101340.0,7.101e-05]
[1734197200382,0.82209823,101350.0,101340.0,7.101e-05]
[1734197200577,0.049337,101340.0,101330.0,0.04932125]
[1734197200784,0.63683107,101340.0,101330.0,0.04932125]
[1734197201185,0.75432442,101340.0,101330.0,0.04932125]
[1734197201778,0.66630761,101340.0,101330.0,0.04932125]
[1734197202084,0.71989597,101340.0,101330.0,0.04932125]